[Event "Dutch Internet Championship Final"]
[Site "playchess.com #038132"]
[Date "2011.06.18"]
[Round "2.3"]
[White "Rossetis"]
[Black "Ivan Sokolov"]
[Result "1-0"]
[ECO "C72"]
[WhiteElo "2455"]
[BlackElo "2391"]
[PlyCount "203"]
[EventDate "2011.06.18"]
[EventType "match (blitz)"]
[TimeControl "180+3"]

1. e4 {[%emt 0:00:02]} e5 {[%emt 0:00:02]} 2. Nf3 {[%emt 0:00:01]} Nc6 {[%emt
0:00:01]} 3. Bb5 {[%emt 0:00:01]} a6 {[%emt 0:00:01]} 4. Ba4 {[%emt 0:00:01]}
d6 {[%emt 0:00:01]} 5. O-O {[%emt 0:00:02]} Bg4 {[%emt 0:00:04]} 6. h3 {[%emt
0:00:02]} Bh5 {[%emt 0:00:03]} 7. c3 {[%emt 0:00:04]} Nf6 {[%emt 0:00:04]} 8.
Re1 {[%emt 0:00:04]} Be7 {[%emt 0:00:04]} 9. d4 {[%emt 0:00:09]} b5 {[%emt 0:
00:07]} 10. Bc2 {[%emt 0:00:03]} Bxf3 {[%emt 0:00:19]} 11. gxf3 {[%emt 0:00:02]
} Nh5 {[%emt 0:00:04]} 12. f4 {[%emt 0:00:20]} Nxf4 {[%emt 0:00:02]} 13. Bxf4 {
[%emt 0:00:02]} exf4 {[%emt 0:00:01]} 14. Qg4 {[%emt 0:00:09]} Bg5 {[%emt 0:00:
11]} 15. Nd2 {[%emt 0:00:12]} O-O {[%emt 0:00:06]} 16. Nf3 {[%emt 0:00:08]} Bh6
{[%emt 0:00:01]} 17. Nh4 {[%emt 0:00:04]} Ne7 {[%emt 0:00:07]} 18. Kh2 {[%emt
0:00:16]} Qc8 {[%emt 0:00:05]} 19. Qg2 {[%emt 0:00:22]} c5 {[%emt 0:00:02]} 20.
e5 {[%emt 0:00:06]} dxe5 {[%emt 0:00:09]} 21. Rxe5 {[%emt 0:00:04]} Qb8 {[%emt
0:00:49]} 22. Qf3 {[%emt 0:00:28]} Qd6 {[%emt 0:00:11]} 23. Rae1 {[%emt 0:00:
07]} Ra7 {[%emt 0:00:15]} 24. Rxe7 {[%emt 0:00:16]} Rxe7 {[%emt 0:00:05]} 25.
Nf5 {[%emt 0:00:01]} Rxe1 {[%emt 0:00:04]} 26. Nxd6 {[%emt 0:00:01]} cxd4 {
[%emt 0:00:09]} 27. cxd4 {[%emt 0:00:03]} g6 {[%emt 0:00:01]} 28. Bb3 {[%emt 0:
00:06]} Re7 {[%emt 0:00:04]} 29. Qg4 {[%emt 0:00:13]} Bg7 {[%emt 0:00:06]} 30.
Nxf7 {[%emt 0:00:05]} Rfxf7 {[%emt 0:00:09]} 31. Bxf7+ {[%emt 0:00:02]} Rxf7 {
[%emt 0:00:02]} 32. d5 {[%emt 0:00:06]} Bxb2 {[%emt 0:00:08]} 33. d6 {[%emt 0:
00:07]} Kg7 {[%emt 0:00:04]} 34. Qe6 {[%emt 0:00:09]} Bf6 {[%emt 0:00:08]} 35.
d7 {[%emt 0:00:04]} Bd8 {[%emt 0:00:05]} 36. Qe8 {[%emt 0:00:03]} Rf8 {[%emt 0:
00:02]} 37. Qe5+ {[%emt 0:00:02]} Rf6 {[%emt 0:00:06]} 38. f3 {[%emt 0:00:13]}
h5 {[%emt 0:00:04]} 39. h4 {[%emt 0:00:02]} b4 {[%emt 0:00:04]} 40. Kg2 {[%emt
0:00:04]} a5 {[%emt 0:00:01]} 41. Kf2 {[%emt 0:00:06]} a4 {[%emt 0:00:03] '
Rossetis reconnected.} 42. Qb8 {[%emt 0:00:02]} Rf8 {[%emt 0:00:17]} 43. Qxb4 {
[%emt 0:00:02]} Bxh4+ {[%emt 0:00:02]} 44. Kg2 {[%emt 0:00:03]} Ra8 {[%emt 0:
00:05]} 45. Qxf4 {[%emt 0:00:06]} Bf6 {[%emt 0:00:01]} 46. Qe4 {[%emt 0:00:05]}
Rd8 {[%emt 0:00:06]} 47. Qxa4 {[%emt 0:00:01]} Kf7 {[%emt 0:00:00]} 48. Qc4+ {
[%emt 0:00:14]} Ke7 {[%emt 0:00:02]} 49. Qe4+ {[%emt 0:00:01]} Kf7 {[%emt 0:00:
07]} 50. Qd3 {[%emt 0:00:06]} g5 {[%emt 0:00:07]} 51. a4 {[%emt 0:00:02]} Ke6 {
[%emt 0:00:05]} 52. Qc4+ {[%emt 0:00:10]} Kxd7 {[%emt 0:00:03]} 53. Qf7+ {
[%emt 0:00:01]} Be7 {[%emt 0:00:02]} 54. Qxh5 {[%emt 0:00:03]} Ra8 {[%emt 0:00:
07]} 55. Qg4+ {[%emt 0:00:02]} Ke8 {[%emt 0:00:02]} 56. Qh5+ {[%emt 0:00:02]}
Kd7 {[%emt 0:00:03]} 57. Qg4+ {[%emt 0:00:01]} Ke8 {[%emt 0:00:01]} 58. Qc4 {
[%emt 0:00:01]} Ra5 {[%emt 0:00:04]} 59. Kg3 {[%emt 0:00:03]} Rc5 {[%emt 0:00:
07]} 60. Qg8+ {[%emt 0:00:03]} Kd7 {[%emt 0:00:02]} 61. Qb3 {[%emt 0:00:05]}
Bd8 {[%emt 0:00:04]} 62. Qb7+ {[%emt 0:00:03]} Bc7+ {[%emt 0:00:01]} 63. Kg2 {
[%emt 0:00:05]} Ra5 {[%emt 0:00:02]} 64. Kf1 {[%emt 0:00:04]} Kd6 {[%emt 0:00:
05]} 65. Qb4+ {[%emt 0:00:02]} Kc6 {[%emt 0:00:01]} 66. Ke2 {[%emt 0:00:03]}
Rc5 {[%emt 0:00:03]} 67. Qe4+ {[%emt 0:00:03]} Kd6 {[%emt 0:00:02]} 68. Qd4+ {
[%emt 0:00:02]} Kc6 {[%emt 0:00:02]} 69. Qf6+ {[%emt 0:00:05]} Kd7 {[%emt 0:00:
08]} 70. Kd3 {[%emt 0:00:07]} Ra5 {[%emt 0:00:02]} 71. Qf7+ {[%emt 0:00:03]}
Kc6 {[%emt 0:00:01]} 72. Qc4+ {[%emt 0:00:02]} Rc5 {[%emt 0:00:04]} 73. Qe4+ {
[%emt 0:00:02]} Kb6 {[%emt 0:00:02]} 74. Kd4 {[%emt 0:00:07]} Ra5 {[%emt 0:00:
05]} 75. Qe6+ {[%emt 0:00:02]} Kb7 {[%emt 0:00:02]} 76. Qb3+ {[%emt 0:00:02]}
Bb6+ {[%emt 0:00:02]} 77. Kc4 {[%emt 0:00:02]} Rf5 {[%emt 0:00:01]} 78. Qd3 {
[%emt 0:00:04]} Re5 {[%emt 0:00:08]} 79. Qd7+ {[%emt 0:00:02]} Ka6 {[%emt 0:00:
03]} 80. Qc8+ {[%emt 0:00:03]} Ka7 {[%emt 0:00:01]} 81. Qd7+ {[%emt 0:00:03]}
Ka6 {[%emt 0:00:02]} 82. Qg7 {[%emt 0:00:02]} Ra5 {[%emt 0:00:05]} 83. Kb4 {
[%emt 0:00:02]} Bc5+ {[%emt 0:00:02]} 84. Kb3 {[%emt 0:00:01]} Bb6 {[%emt 0:00:
00]} 85. Qg8 {[%emt 0:00:02]} Ka7 {[%emt 0:00:06]} 86. Qf7+ {[%emt 0:00:02]}
Ka6 {[%emt 0:00:01]} 87. Qe8 {[%emt 0:00:01]} Ka7 {[%emt 0:00:02]} 88. Kb4 {
[%emt 0:00:03]} Rc5 {[%emt 0:00:11]} 89. Qe7+ {[%emt 0:00:08]} Rc7 {[%emt 0:00:
08]} 90. Qxg5 {[%emt 0:00:01]} Rf7 {[%emt 0:00:01]} 91. Qd5 {[%emt 0:00:02]}
Rf6 {[%emt 0:00:09]} 92. a5 {[%emt 0:00:04]} Bf2 {[%emt 0:00:09]} 93. Qd7+ {
[%emt 0:00:01]} Ka6 {[%emt 0:00:02]} 94. Qc8+ {[%emt 0:00:03]} Ka7 {[%emt 0:00:
01]} 95. Qc7+ {[%emt 0:00:05]} Ka6 {[%emt 0:00:02]} 96. Qc4+ {[%emt 0:00:03]}
Ka7 {[%emt 0:00:02]} 97. Qe2 {[%emt 0:00:09]} Rf4+ {[%emt 0:00:04]} 98. Kb3 {
[%emt 0:00:01]} Bc5 {[%emt 0:00:05]} 99. Qe5 {[%emt 0:00:06]} Rb4+ {[%emt 0:00:
01]} 100. Kc3 {[%emt 0:00:02]} Rb5 {[%emt 0:00:01]} 101. Qc7+ {[%emt 0:00:01]}
Ka6 {[%emt 0:00:00]} 102. Kc4 {[%emt 0:00:01] Time} 1-0

[Event "Dutch Internet Championship Final"]
[Site "playchess.com #038132"]
[Date "2011.06.18"]
[Round "2.3"]
[White "Daanbrandenburg"]
[Black "Jan Smeets"]
[Result "1/2-1/2"]
[ECO "B06"]
[WhiteElo "2725"]
[BlackElo "2818"]
[PlyCount "111"]
[EventDate "2011.06.18"]
[EventType "match (blitz)"]
[TimeControl "180+3"]

1. e4 {[%emt 0:00:02]} d6 {[%emt 0:00:00]} 2. d4 {[%emt 0:00:01]} g6 {[%emt 0:
00:01]} 3. Nc3 {[%emt 0:00:01]} Bg7 {[%emt 0:00:00]} 4. Be3 {[%emt 0:00:01]} a6
{[%emt 0:00:01]} 5. h3 {[%emt 0:00:01]} b5 {[%emt 0:00:02]} 6. g4 {[%emt 0:00:
01]} Bb7 {[%emt 0:00:09]} 7. Bg2 {[%emt 0:00:01]} Nf6 {[%emt 0:00:04]} 8. a3 {
[%emt 0:00:01]} Nbd7 {[%emt 0:00:10]} 9. Nge2 {[%emt 0:00:01]} c5 {[%emt 0:00:
03]} 10. Ng3 {[%emt 0:00:15]} cxd4 {[%emt 0:00:09]} 11. Bxd4 {[%emt 0:00:01]}
O-O {[%emt 0:00:03]} 12. O-O {[%emt 0:00:01]} Qc7 {[%emt 0:00:32]} 13. f4 {
[%emt 0:00:02]} e5 {[%emt 0:00:07]} 14. Be3 {[%emt 0:00:02]} exf4 {[%emt 0:00:
01]} 15. Bxf4 {[%emt 0:00:01]} Ne5 {[%emt 0:00:00]} 16. Kh1 {[%emt 0:00:05]}
Rfe8 {[%emt 0:00:06]} 17. Qe2 {[%emt 0:00:12]} Nc4 {[%emt 0:00:06]} 18. Nd1 {
[%emt 0:00:46]} Re6 {[%emt 0:00:04]} 19. b3 {[%emt 0:00:18]} Nb6 {[%emt 0:00:
25]} 20. Nf2 {[%emt 0:00:12]} Rc8 {[%emt 0:00:06]} 21. Rac1 {[%emt 0:00:04]}
Qe7 {[%emt 0:00:18]} 22. Qd2 {[%emt 0:00:13]} d5 {[%emt 0:00:14]} 23. Bg5 {
[%emt 0:00:25]} dxe4 {[%emt 0:00:08]} 24. Bxf6 {[%emt 0:00:09]} Bxf6 {[%emt 0:
00:30]} 25. Nfxe4 {[%emt 0:00:01]} Bg7 {[%emt 0:00:08]} 26. Rce1 {[%emt 0:00:
07]} Re8 {[%emt 0:00:03]} 27. Re2 {[%emt 0:00:21]} Be5 {[%emt 0:00:15]} 28.
Rfe1 {[%emt 0:00:09]} Qc7 {[%emt 0:00:09]} 29. Qd3 {[%emt 0:00:45] .} R6e7 {
[%emt 0:00:12] '} 30. Re3 {[%emt 0:00:05]} Nd5 {[%emt 0:00:01]} 31. Rf3 {[%emt
0:00:03]} Bg7 {[%emt 0:00:15]} 32. Ref1 {[%emt 0:00:01]} Kh8 {[%emt 0:00:06]}
33. Ng5 {[%emt 0:00:01]} f6 {[%emt 0:00:02]} 34. N5e4 {[%emt 0:00:03]} Qe5 {
[%emt 0:00:02]} 35. Nd2 {[%emt 0:00:02]} Ne3 {[%emt 0:00:01]} 36. Rxe3 {[%emt
0:00:02]} Bxg2+ {[%emt 0:00:01]} 37. Kxg2 {[%emt 0:00:00]} Qxe3 {[%emt 0:00:00]
} 38. Qxe3 {[%emt 0:00:00]} Rxe3 {[%emt 0:00:01]} 39. Rf2 {[%emt 0:00:01]} Rc3
{[%emt 0:00:02]} 40. Nde4 {[%emt 0:00:01]} Rc6 {[%emt 0:00:01]} 41. c4 {[%emt
0:00:01]} bxc4 {[%emt 0:00:01]} 42. bxc4 {[%emt 0:00:00]} Rxc4 {[%emt 0:00:01]}
43. Nd6 {[%emt 0:00:01]} Rec8 {[%emt 0:00:02]} 44. Nxc8 {[%emt 0:00:01]} Rxc8 {
[%emt 0:00:01]} 45. Rb2 {[%emt 0:00:00]} Bf8 {[%emt 0:00:03]} 46. Rb6 {[%emt 0:
00:02]} Rc2+ {[%emt 0:00:02]} 47. Kf1 {[%emt 0:00:03]} Kg7 {[%emt 0:00:04]} 48.
Rxa6 {[%emt 0:00:01]} Rc3 {[%emt 0:00:00]} 49. Ra7+ {[%emt 0:00:01]} Kh6 {
[%emt 0:00:02]} 50. Kg2 {[%emt 0:00:08]} Bxa3 {[%emt 0:00:08]} 51. h4 {[%emt 0:
00:02]} Bc5 {[%emt 0:00:05]} 52. Rf7 {[%emt 0:00:03]} Rc2+ {[%emt 0:00:05]} 53.
Kh3 {[%emt 0:00:01]} Rc3 {[%emt 0:00:10]} 54. Kg2 {[%emt 0:00:01]} Rc2+ {[%emt
0:00:02]} 55. Kh3 {[%emt 0:00:01]} Rc3 {[%emt 0:00:01]} 56. Kg2 {[%emt 0:00:07]
(Lag: Av=0.52s, max=1.3s)} 1/2-1/2

[Event "Dutch Internet Championship Final"]
[Site "playchess.com #038132"]
[Date "2011.06.18"]
[Round "2.3"]
[White "Christov"]
[Black "Reinderman"]
[Result "1-0"]
[ECO "B78"]
[WhiteElo "2457"]
[BlackElo "2527"]
[PlyCount "89"]
[EventDate "2011.06.18"]
[EventType "match (blitz)"]
[TimeControl "180+3"]

1. e4 {[%emt 0:00:01]} c5 {[%emt 0:00:01]} 2. Nf3 {[%emt 0:00:01]} d6 {[%emt 0:
00:01]} 3. Nc3 {[%emt 0:00:01]} Nc6 {[%emt 0:00:03]} 4. d4 {[%emt 0:00:01]}
cxd4 {[%emt 0:00:01]} 5. Nxd4 {[%emt 0:00:00]} g6 {[%emt 0:00:01]} 6. Be3 {
[%emt 0:00:01]} Bg7 {[%emt 0:00:01]} 7. Qd2 {[%emt 0:00:01]} Nf6 {[%emt 0:00:
01]} 8. f3 {[%emt 0:00:01]} O-O {[%emt 0:00:01]} 9. Bc4 {[%emt 0:00:02]} Bd7 {
[%emt 0:00:04]} 10. O-O-O {[%emt 0:00:02]} Na5 {[%emt 0:00:04]} 11. Bb3 {[%emt
0:00:03]} Rb8 {[%emt 0:00:01]} 12. h4 {[%emt 0:00:04]} b5 {[%emt 0:00:01]} 13.
Kb1 {[%emt 0:00:01]} Nc4 {[%emt 0:00:03]} 14. Bxc4 {[%emt 0:00:01]} bxc4 {
[%emt 0:00:01]} 15. Ka1 {[%emt 0:00:00]} Rb7 {[%emt 0:00:21]} 16. g4 {[%emt 0:
00:12]} Qc7 {[%emt 0:00:09]} 17. h5 {[%emt 0:00:03]} Rfb8 {[%emt 0:00:01]} 18.
Rb1 {[%emt 0:00:02]} Qa5 {[%emt 0:00:12]} 19. hxg6 {[%emt 0:00:04]} fxg6 {
[%emt 0:00:02]} 20. Nde2 {[%emt 0:00:09]} Be6 {[%emt 0:00:09]} 21. Bd4 {[%emt
0:00:09]} Bf7 {[%emt 0:00:15]} 22. a3 {[%emt 0:00:37]} e5 {[%emt 0:00:23]} 23.
Be3 {[%emt 0:00:07]} d5 {[%emt 0:00:20]} 24. Nxd5 {[%emt 0:00:08]} Qxd2 {[%emt
0:00:04]} 25. Nxf6+ {[%emt 0:00:02]} Bxf6 {[%emt 0:00:01]} 26. Bxd2 {[%emt 0:
00:00]} Rd7 {[%emt 0:00:07]} 27. Be3 {[%emt 0:00:12]} Rbd8 {[%emt 0:00:03]} 28.
Nc3 {[%emt 0:00:01]} h5 {[%emt 0:00:10]} 29. gxh5 {[%emt 0:00:03]} gxh5 {[%emt
0:00:01]} 30. Rbg1+ {[%emt 0:00:01]} Kh7 {[%emt 0:00:05]} 31. Bg5 {[%emt 0:00:
02]} Bxg5 {[%emt 0:00:10]} 32. Rxg5 {[%emt 0:00:01]} Re8 {[%emt 0:00:01]} 33.
Nd5 {[%emt 0:00:04]} Kh6 {[%emt 0:00:09]} 34. Rf5 {[%emt 0:00:13]} Bg6 {[%emt
0:00:11]} 35. Rf6 {[%emt 0:00:07]} Rf7 {[%emt 0:00:02]} 36. Rc6 {[%emt 0:00:13]
} Rg8 {[%emt 0:00:19]} 37. Nf6 {[%emt 0:00:07]} Rgf8 {[%emt 0:00:10]} 38. Ng4+
{[%emt 0:00:05]} Kg7 {[%emt 0:00:07]} 39. Nxe5 {[%emt 0:00:01]} Rf6 {[%emt 0:
00:01]} 40. Rc7+ {[%emt 0:00:09]} Bf7 {[%emt 0:00:02]} 41. Rxh5 {[%emt 0:00:03]
} c3 {[%emt 0:00:06]} 42. b4 {[%emt 0:00:06]} a5 {[%emt 0:00:05]} 43. Rf5 {
[%emt 0:00:07]} axb4 {[%emt 0:00:09]} 44. Rxf6 {[%emt 0:00:01]} Kxf6 {[%emt 0:
00:01]} 45. Nd7+ {[%emt 0:00:01] Reinderman geeft op  (Lag: Av=0.37s, max=2.9s)
} 1-0

[Event "Dutch Internet Championship Final"]
[Site "playchess.com #038132"]
[Date "2011.06.18"]
[Round "2.3"]
[White "Erikerik"]
[Black "kingloek"]
[Result "1-0"]
[ECO "B23"]
[WhiteElo "2638"]
[BlackElo "2919"]
[PlyCount "49"]
[EventDate "2011.06.18"]
[EventType "match (blitz)"]
[TimeControl "180+3"]

1. e4 {[%emt 0:00:01]} c5 {[%emt 0:00:01]} 2. Nc3 {[%emt 0:00:01]} d6 {[%emt 0:
00:02]} 3. f4 {[%emt 0:00:05]} g6 {[%emt 0:00:02]} 4. Nf3 {[%emt 0:00:01]} Bg7
{[%emt 0:00:01]} 5. Bb5+ {[%emt 0:00:02]} Bd7 {[%emt 0:00:02]} 6. Bxd7+ {[%emt
0:00:02]} Qxd7 {[%emt 0:00:02]} 7. O-O {[%emt 0:00:02]} Nc6 {[%emt 0:00:01]} 8.
d3 {[%emt 0:00:01]} e6 {[%emt 0:00:03]} 9. Be3 {[%emt 0:00:04]} Nd4 {[%emt 0:
00:05]} 10. Bxd4 {[%emt 0:00:05]} cxd4 {[%emt 0:00:01]} 11. Ne2 {[%emt 0:00:02]
} e5 {[%emt 0:00:15]} 12. c3 {[%emt 0:00:23]} dxc3 {[%emt 0:00:08]} 13. bxc3 {
[%emt 0:00:02]} exf4 {[%emt 0:00:07]} 14. d4 {[%emt 0:00:04]} Nf6 {[%emt 0:00:
05]} 15. Nxf4 {[%emt 0:00:40]} O-O {[%emt 0:00:08]} 16. Re1 {[%emt 0:00:08]}
Rac8 {[%emt 0:00:08]} 17. Qb3 {[%emt 0:00:04]} Qc6 {[%emt 0:00:12]} 18. Rac1 {
[%emt 0:01:37]} Nxe4 {[%emt 0:00:07]} 19. Nd5 {[%emt 0:00:05]} Rfe8 {[%emt 0:
00:07]} 20. Rc2 {[%emt 0:00:20]} Kf8 {[%emt 0:01:11] '} 21. Rce2 {[%emt 0:00:
05]} Nf6 {[%emt 0:00:44]} 22. Ne7 {[%emt 0:00:03]} Qxc3 {[%emt 0:00:05]} 23.
Nxc8 {[%emt 0:00:05]} Qxb3 {[%emt 0:00:08]} 24. Rxe8+ {[%emt 0:00:04]} Nxe8 {
[%emt 0:00:02]} 25. axb3 {[%emt 0:00:01] kingloek resigns  (Lag: Av=0.56s,
max=1.9s)} 1-0

[Event "Dutch Internet Championship Final"]
[Site "playchess.com #038132"]
[Date "2011.06.18"]
[Round "2.5"]
[White "Christov"]
[Black "Reinderman"]
[Result "1-0"]
[ECO "B04"]
[WhiteElo "2462"]
[BlackElo "2522"]
[PlyCount "117"]
[EventDate "2011.06.18"]
[EventType "match (blitz)"]
[TimeControl "180+3"]

1. e4 {[%emt 0:00:02]} Nf6 {[%emt 0:00:01]} 2. e5 {[%emt 0:00:01]} Nd5 {[%emt
0:00:01]} 3. d4 {[%emt 0:00:00]} d6 {[%emt 0:00:01]} 4. Nf3 {[%emt 0:00:00]}
dxe5 {[%emt 0:00:02]} 5. Nxe5 {[%emt 0:00:03]} c6 {[%emt 0:00:01]} 6. Be2 {
[%emt 0:00:11]} Nd7 {[%emt 0:00:01]} 7. Nf3 {[%emt 0:00:02]} N7f6 {[%emt 0:00:
01]} 8. c4 {[%emt 0:00:02]} Nc7 {[%emt 0:00:05]} 9. Nc3 {[%emt 0:00:02]} Bg4 {
[%emt 0:00:01]} 10. h3 {[%emt 0:00:01]} Bh5 {[%emt 0:00:01]} 11. O-O {[%emt 0:
00:01]} e6 {[%emt 0:00:01]} 12. Be3 {[%emt 0:00:05]} Be7 {[%emt 0:00:02]} 13.
Ne5 {[%emt 0:00:03]} Bxe2 {[%emt 0:00:02]} 14. Qxe2 {[%emt 0:00:00]} O-O {
[%emt 0:00:04]} 15. Rad1 {[%emt 0:00:02]} Nd7 {[%emt 0:00:07]} 16. f4 {[%emt 0:
00:02]} f6 {[%emt 0:00:04]} 17. Nd3 {[%emt 0:00:08]} Re8 {[%emt 0:00:03]} 18.
Ne4 {[%emt 0:00:05]} Bf8 {[%emt 0:00:12]} 19. Qh5 {[%emt 0:00:04]} Qe7 {[%emt
0:00:07]} 20. Bf2 {[%emt 0:00:08]} Qf7 {[%emt 0:00:03]} 21. Qf3 {[%emt 0:00:02]
} Rad8 {[%emt 0:00:04]} 22. Rfe1 {[%emt 0:00:03]} Na6 {[%emt 0:00:13]} 23. Re2
{[%emt 0:00:24]} Nb4 {[%emt 0:00:07]} 24. Nxb4 {[%emt 0:00:09]} Bxb4 {[%emt 0:
00:01]} 25. Qb3 {[%emt 0:00:08]} a5 {[%emt 0:00:25]} 26. c5 {[%emt 0:00:08]}
Qh5 {[%emt 0:01:05]} 27. Kf1 {[%emt 0:00:29]} Qd5 {[%emt 0:00:05]} 28. Qxd5 {
[%emt 0:00:49]} exd5 {[%emt 0:00:05]} 29. Nd6 {[%emt 0:00:01]} Rxe2 {[%emt 0:
00:04]} 30. Kxe2 {[%emt 0:00:00]} a4 {[%emt 0:00:26]} 31. Nxb7 {[%emt 0:00:05]}
Rb8 {[%emt 0:00:03]} 32. Nd6 {[%emt 0:00:08]} Ba5 {[%emt 0:00:02]} 33. Rb1 {
[%emt 0:00:02]} Bc3 {[%emt 0:00:07]} 34. b3 {[%emt 0:00:02]} axb3 {[%emt 0:00:
30]} 35. Rxb3 {[%emt 0:00:04]} Rxb3 {[%emt 0:00:01]} 36. axb3 {[%emt 0:00:01]}
Kf8 {[%emt 0:00:08]} 37. Kd3 {[%emt 0:00:02]} Bb4 {[%emt 0:00:04]} 38. f5 {
[%emt 0:00:08]} Nb8 {[%emt 0:00:02]} 39. g4 {[%emt 0:00:04]} Ke7 {[%emt 0:00:
04]} 40. Bg3 {[%emt 0:00:04]} Kd7 {[%emt 0:00:05]} 41. Ne8 {[%emt 0:00:10]}
Kxe8 {[%emt 0:00:06]} 42. Bxb8 {[%emt 0:00:01]} Kd7 {[%emt 0:00:01]} 43. Bf4 {
[%emt 0:00:01]} Be1 {[%emt 0:00:04]} 44. Bd2 {[%emt 0:00:02]} Bg3 {[%emt 0:00:
01]} 45. b4 {[%emt 0:00:01]} Kc7 {[%emt 0:00:03]} 46. Kc3 {[%emt 0:00:01]} Kb7
{[%emt 0:00:01]} 47. Kb3 {[%emt 0:00:01]} Ka6 {[%emt 0:00:01]} 48. Ka4 {[%emt
0:00:01]} Bh2 {[%emt 0:00:02]} 49. h4 {[%emt 0:00:04]} Bg3 {[%emt 0:00:02]} 50.
h5 {[%emt 0:00:13]} Bf2 {[%emt 0:00:03]} 51. h6 {[%emt 0:00:06]} gxh6 {[%emt 0:
00:02]} 52. Bxh6 {[%emt 0:00:00]} Bxd4 {[%emt 0:00:02]} 53. Bg7 {[%emt 0:00:01]
} Be3 {[%emt 0:00:24]} 54. Bxf6 {[%emt 0:00:03]} d4 {[%emt 0:00:02]} 55. Kb3 {
[%emt 0:00:18] .} d3 {[%emt 0:00:01]} 56. g5 {[%emt 0:00:06]} d2 {[%emt 0:00:
08]} 57. Kc2 {[%emt 0:00:01]} Kb5 {[%emt 0:00:01]} 58. g6 {[%emt 0:00:01]} h6 {
[%emt 0:00:01]} 59. g7 {[%emt 0:00:02] Reinderman geeft op  (Lag: Av=0.39s,
max=2.4s)} 1-0

[Event "Dutch Internet Championship Final"]
[Site "playchess.com #038132"]
[Date "2011.06.18"]
[Round "2.5"]
[White "Daanbrandenburg"]
[Black "Jan Smeets"]
[Result "0-1"]
[ECO "C42"]
[WhiteElo "2751"]
[BlackElo "2792"]
[PlyCount "74"]
[EventDate "2011.06.18"]
[EventType "match (blitz)"]
[TimeControl "180+3"]

1. e4 {[%emt 0:00:01]} e5 {[%emt 0:00:01]} 2. Nf3 {[%emt 0:00:02]} Nf6 {[%emt
0:00:01]} 3. Nxe5 {[%emt 0:00:03]} d6 {[%emt 0:00:01]} 4. Nf3 {[%emt 0:00:01]}
Nxe4 {[%emt 0:00:00]} 5. d4 {[%emt 0:00:01]} d5 {[%emt 0:00:01]} 6. Bd3 {[%emt
0:00:01]} Nc6 {[%emt 0:00:01]} 7. O-O {[%emt 0:00:02]} Be7 {[%emt 0:00:00]} 8.
Re1 {[%emt 0:00:01]} Bg4 {[%emt 0:00:09]} 9. c4 {[%emt 0:00:20]} Bxf3 {[%emt 0:
00:25]} 10. Qxf3 {[%emt 0:00:17]} Nxd4 {[%emt 0:00:01]} 11. Qe3 {[%emt 0:00:22]
} Nf5 {[%emt 0:00:43]} 12. Qf4 {[%emt 0:00:07]} g6 {[%emt 0:00:33]} 13. cxd5 {
[%emt 0:00:07]} Ned6 {[%emt 0:00:01]} 14. Nc3 {[%emt 0:00:08]} O-O {[%emt 0:00:
01]} 15. Qg4 {[%emt 0:00:14]} Re8 {[%emt 0:00:09]} 16. Bf4 {[%emt 0:00:03]} Rc8
{[%emt 0:00:32]} 17. Ne4 {[%emt 0:00:07]} Nxe4 {[%emt 0:00:09]} 18. Bxe4 {
[%emt 0:00:01]} Nd6 {[%emt 0:00:02]} 19. Bd3 {[%emt 0:00:01]} Bf6 {[%emt 0:00:
03]} 20. g3 {[%emt 0:00:46]} Kg7 {[%emt 0:00:11]} 21. h4 {[%emt 0:00:15]} h5 {
[%emt 0:00:04]} 22. Qf3 {[%emt 0:00:01]} Bxb2 {[%emt 0:00:12]} 23. Rab1 {[%emt
0:00:04]} Rxe1+ {[%emt 0:00:03]} 24. Rxe1 {[%emt 0:00:01]} Qf6 {[%emt 0:00:06]}
25. Kg2 {[%emt 0:00:10]} Bd4 {[%emt 0:00:07]} 26. Bc2 {[%emt 0:00:28]} Re8 {
[%emt 0:00:12]} 27. Rxe8 {[%emt 0:00:04]} Nxe8 {[%emt 0:00:00]} 28. Qb3 {[%emt
0:00:13]} Nd6 {[%emt 0:00:06]} 29. Qf3 {[%emt 0:00:13]} Be5 {[%emt 0:00:09]}
30. Be3 {[%emt 0:00:07]} b6 {[%emt 0:00:12]} 31. Qxf6+ {[%emt 0:00:05]} Kxf6 {
[%emt 0:00:01]} 32. f4 {[%emt 0:00:00]} Bc3 {[%emt 0:00:03]} 33. Kf3 {[%emt 0:
00:03]} Nf5 {[%emt 0:00:02]} 34. Bf2 {[%emt 0:00:01]} Ke7 {[%emt 0:00:03]} 35.
g4 {[%emt 0:00:06]} hxg4+ {[%emt 0:00:03]} 36. Kxg4 {[%emt 0:00:00]} Ng7 {
[%emt 0:00:07]} 37. Bg3 {[%emt 0:00:06]} f5+ {[%emt 0:00:03]} 0-1

[Event "Dutch Internet Championship Final"]
[Site "playchess.com #038132"]
[Date "2011.06.18"]
[Round "2.4"]
[White "Ivan Sokolov"]
[Black "Rossetis"]
[Result "1-0"]
[ECO "A57"]
[WhiteElo "2366"]
[BlackElo "2469"]
[PlyCount "55"]
[EventDate "2011.06.18"]
[EventType "match (blitz)"]
[TimeControl "180+3"]

1. d4 {[%emt 0:00:03]} Nf6 {[%emt 0:00:03]} 2. c4 {[%emt 0:00:01]} c5 {[%emt 0:
00:02]} 3. d5 {[%emt 0:00:02]} b5 {[%emt 0:00:01]} 4. Qc2 {[%emt 0:00:02]} bxc4
{[%emt 0:00:02]} 5. e4 {[%emt 0:00:02]} d6 {[%emt 0:00:01]} 6. Bxc4 {[%emt 0:
00:03]} g6 {[%emt 0:00:01]} 7. Nf3 {[%emt 0:00:06]} Bg7 {[%emt 0:00:01]} 8. O-O
{[%emt 0:00:02]} O-O {[%emt 0:00:02]} 9. Re1 {[%emt 0:00:03]} Nbd7 {[%emt 0:00:
03]} 10. Nc3 {[%emt 0:00:02]} Ne8 {[%emt 0:00:07]} 11. Bf4 {[%emt 0:00:03]} Rb8
{[%emt 0:00:06]} 12. Rad1 {[%emt 0:00:06]} Qa5 {[%emt 0:00:05]} 13. e5 {[%emt
0:00:07]} dxe5 {[%emt 0:00:09]} 14. Nxe5 {[%emt 0:00:01]} Nxe5 {[%emt 0:00:06]}
15. Bxe5 {[%emt 0:00:01]} Nd6 {[%emt 0:00:11]} 16. Bxg7 {[%emt 0:00:02]} Kxg7 {
[%emt 0:00:01]} 17. b3 {[%emt 0:00:04]} Bf5 {[%emt 0:00:07]} 18. Bd3 {[%emt 0:
00:23]} Rfe8 {[%emt 0:00:13]} 19. h3 {[%emt 0:00:08]} Rb4 {[%emt 0:00:11]} 20.
Bxf5 {[%emt 0:00:07]} Nxf5 {[%emt 0:00:08]} 21. Ne4 {[%emt 0:00:01]} Rd8 {
[%emt 0:00:21]} 22. Qc3+ {[%emt 0:00:11]} Kg8 {[%emt 0:00:12]} 23. d6 {[%emt 0:
00:37]} Nxd6 {[%emt 0:01:03]} 24. Rxd6 {[%emt 0:00:07]} exd6 {[%emt 0:00:02]}
25. Nf6+ {[%emt 0:00:02]} Kf8 {[%emt 0:00:01]} 26. Nd5 {[%emt 0:00:15]} Kg8 {
[%emt 0:00:14]} 27. Ne7+ {[%emt 0:00:05]} Kf8 {[%emt 0:00:01]} 28. Qh8# {[%emt
0:00:03] (Lag: Av=0.26s, max=0.8s)} 1-0